[Event "*** Titled Tuesday Blitz"]
[Site "Chess.com"]
[Date "2020.05.26"]
[Round "8"]
[White "Feegus"]
[Black "BikingBrian"]
[Result "0-1"]
[WhiteElo "2447"]
[BlackElo "2273"]
[TimeControl "180+1"]
[EndTime "11:41:08 PDT"]
[Termination "BikingBrian won by resignation"]

1. Nf3 {[%clk 0:00:11.3]} 1... g6 {[%clk 0:02:58.9]} 2. g3 {[%clk 0:00:12.2]}
2... Bg7 {[%clk 0:02:58.8]} 3. Bg2 {[%clk 0:00:13.1]} 3... c5 {[%clk 0:02:58.9]}
4. O-O {[%clk 0:00:14]} 4... Nc6 {[%clk 0:02:58.8]} 5. c4 {[%clk 0:00:14.7]}
5... e5 {[%clk 0:02:58.9]} 6. Nc3 {[%clk 0:00:15.1]} 6... Nge7 {[%clk 0:02:59]}
7. Ne1 {[%clk 0:00:15.7]} 7... d6 {[%clk 0:02:45.7]} 8. Nc2 {[%clk 0:00:16.4]}
8... Be6 {[%clk 0:02:45.8]} 9. Ne3 {[%clk 0:00:17.2]} 9... O-O {[%clk
0:02:44.7]} 10. Rb1 {[%clk 0:00:17]} 10... Rb8 {[%clk 0:02:38.1]} 11. a3 {[%clk
0:00:15.2]} 11... a6 {[%clk 0:02:23.6]} 12. d3 {[%clk 0:00:14.6]} 12... b5
{[%clk 0:02:21.6]} 13. cxb5 {[%clk 0:00:14.7]} 13... axb5 {[%clk 0:02:22.5]} 14.
b4 {[%clk 0:00:15.2]} 14... cxb4 {[%clk 0:02:18]} 15. axb4 {[%clk 0:00:16.1]}
15... d5 {[%clk 0:02:11.6]} 16. Nc2 {[%clk 0:00:15.2]} 16... d4 {[%clk
0:01:55.4]} 17. Ne4 {[%clk 0:00:14.9]} 17... f5 {[%clk 0:01:48.2]} 18. Nc5
{[%clk 0:00:14.1]} 18... Bd5 {[%clk 0:01:47.9]} 19. e4 {[%clk 0:00:14.3]} 19...
fxe4 {[%clk 0:01:37.7]} 20. Bxe4 {[%clk 0:00:11.5]} 20... Bxe4 {[%clk
0:01:36.5]} 21. dxe4 {[%clk 0:00:12.4]} 21... Qd6 {[%clk 0:01:29.6]} 22. Ne1
{[%clk 0:00:12.6]} 22... Nxb4 {[%clk 0:01:27.3]} 23. Qb3+ {[%clk 0:00:12.4]}
23... Nbd5 {[%clk 0:01:22.7]} 24. Ncd3 {[%clk 0:00:11.7]} 24... Kh8 {[%clk
0:01:16.8]} 25. exd5 {[%clk 0:00:08]} 25... Nxd5 {[%clk 0:01:17.7]} 26. Nb4
{[%clk 0:00:08]} 26... Nc3 {[%clk 0:01:14.3]} 27. Rb2 {[%clk 0:00:07.1]} 27...
Qd7 {[%clk 0:00:53.1]} 28. Ned3 {[%clk 0:00:07.2]} 28... Rf3 {[%clk 0:00:38.9]}
29. Nc5 {[%clk 0:00:07.1]} 29... Qc8 {[%clk 0:00:28.6]} 30. Nca6 {[%clk
0:00:03.6]} 30... Ne2+ {[%clk 0:00:28.1]} 31. Rxe2 {[%clk 0:00:04.2]} 31... Rxb3
{[%clk 0:00:28.3]} 32. Nxb8 {[%clk 0:00:04.4]} 32... Qxb8 {[%clk 0:00:27.6]} 33.
Bd2 {[%clk 0:00:05.3]} 33... Qa8 {[%clk 0:00:25.9]} 34. Rc1 {[%clk 0:00:04.7]}
34... Ra3 {[%clk 0:00:25.3]} 35. h4 {[%clk 0:00:03.5]} 35... Ra1 {[%clk
0:00:25.4]} 36. Ree1 {[%clk 0:00:03.6]} 36... Rxc1 {[%clk 0:00:25.1]} 37. Rxc1
{[%clk 0:00:04.5]} 37... e4 {[%clk 0:00:25.4]} 38. Bf4 {[%clk 0:00:04.6]} 38...
e3 {[%clk 0:00:25]} 39. fxe3 {[%clk 0:00:04.5]} 39... dxe3 {[%clk 0:00:25.2]}
40. Bxe3 {[%clk 0:00:05.4]} 40... h5 {[%clk 0:00:25.1]} 41. Rc6 {[%clk
0:00:04.8]} 41... Qa1+ {[%clk 0:00:24]} 42. Kg2 {[%clk 0:00:04.2]} 42... Bd4
{[%clk 0:00:24.6]} 43. Bxd4+ {[%clk 0:00:04.1]} 43... Qxd4 {[%clk 0:00:24.6]}
44. Rc8+ {[%clk 0:00:04.4]} 44... Kh7 {[%clk 0:00:24.3]} 45. Rc6 {[%clk
0:00:04.1]} 45... Qe4+ {[%clk 0:00:23.7]} 46. Kf2 {[%clk 0:00:03.8]} 46... Qxb4
{[%clk 0:00:24.6]} 0-1

[Event "*** Titled Tuesday Blitz"]
[Site "Chess.com"]
[Date "2020.05.26"]
[Round "8"]
[White "CrazyMartian"]
[Black "profofchess"]
[Result "0-1"]
[WhiteElo "2310"]
[BlackElo "2489"]
[TimeControl "180+1"]
[EndTime "11:41:09 PDT"]
[Termination "profofchess won by checkmate"]

1. d4 {[%clk 0:03:00.9]} 1... Nf6 {[%clk 0:02:58.5]} 2. Bf4 {[%clk 0:02:59.9]}
2... c5 {[%clk 0:02:54.6]} 3. e3 {[%clk 0:02:59.2]} 3... e6 {[%clk 0:02:50.1]}
4. c3 {[%clk 0:02:58.6]} 4... Be7 {[%clk 0:02:48.5]} 5. Nd2 {[%clk 0:02:58.1]}
5... cxd4 {[%clk 0:02:46.2]} 6. exd4 {[%clk 0:02:57.6]} 6... b6 {[%clk 0:02:44]}
7. Qf3 {[%clk 0:02:52.4]} 7... Nc6 {[%clk 0:02:42.5]} 8. Bd3 {[%clk 0:02:51.8]}
8... Bb7 {[%clk 0:02:41.2]} 9. Qh3 {[%clk 0:02:51.5]} 9... h6 {[%clk 0:02:24.8]}
10. Ngf3 {[%clk 0:02:34.7]} 10... d6 {[%clk 0:02:15.6]} 11. O-O {[%clk
0:02:26.2]} 11... Nd5 {[%clk 0:02:08.1]} 12. Bg3 {[%clk 0:01:57.8]} 12... g5
{[%clk 0:01:53.9]} 13. Ne1 {[%clk 0:01:26.4]} 13... h5 {[%clk 0:01:48.7]} 14. f3
{[%clk 0:01:07.2]} 14... Qd7 {[%clk 0:01:35.8]} 15. Nc2 {[%clk 0:00:46.3]} 15...
O-O-O {[%clk 0:01:20.7]} 16. Be4 {[%clk 0:00:45.8]} 16... Rdg8 {[%clk 0:01:13]}
17. Be1 {[%clk 0:00:32.8]} 17... Nf4 {[%clk 0:01:07.4]} 18. Qg3 {[%clk
0:00:25.8]} 18... Ne2+ {[%clk 0:01:05.7]} 19. Kh1 {[%clk 0:00:23.1]} 19... Nxg3+
{[%clk 0:01:05.2]} 20. Bxg3 {[%clk 0:00:23.3]} 20... f5 {[%clk 0:01:00.2]} 21.
Bd3 {[%clk 0:00:22.9]} 21... h4 {[%clk 0:00:57.9]} 22. Bf2 {[%clk 0:00:23]}
22... h3 {[%clk 0:00:57.8]} 23. g3 {[%clk 0:00:21.6]} 23... g4 {[%clk 0:00:56]}
24. Kg1 {[%clk 0:00:21.5]} 24... gxf3 {[%clk 0:00:53.8]} 25. Nxf3 {[%clk
0:00:21.8]} 25... Nd8 {[%clk 0:00:46.3]} 26. Be3 {[%clk 0:00:20.6]} 26... Nf7
{[%clk 0:00:42.7]} 27. c4 {[%clk 0:00:18.6]} 27... Ng5 {[%clk 0:00:40.4]} 28.
Nxg5 {[%clk 0:00:18]} 28... Bxg5 {[%clk 0:00:40.2]} 29. Bxg5 {[%clk 0:00:18.2]}
29... Rxg5 {[%clk 0:00:40]} 30. d5 {[%clk 0:00:18.9]} 30... e5 {[%clk
0:00:37.9]} 31. Nb4 {[%clk 0:00:16.4]} 31... f4 {[%clk 0:00:35.6]} 32. Kh1
{[%clk 0:00:13.6]} 32... fxg3 {[%clk 0:00:34.3]} 33. hxg3 {[%clk 0:00:14.5]}
33... Kb8 {[%clk 0:00:28]} 34. Rf3 {[%clk 0:00:13.2]} 34... a5 {[%clk
0:00:27.2]} 35. Nc2 {[%clk 0:00:12.8]} 35... Qg7 {[%clk 0:00:21.7]} 36. Kh2
{[%clk 0:00:11.8]} 36... e4 {[%clk 0:00:20.8]} 37. Bxe4 {[%clk 0:00:11.4]} 37...
Qxb2 {[%clk 0:00:19.9]} 38. Raf1 {[%clk 0:00:11.3]} 38... Ka7 {[%clk 0:00:18.6]}
39. R1f2 {[%clk 0:00:11.4]} 39... Qe5 {[%clk 0:00:18.1]} 40. Bf5 {[%clk
0:00:10.5]} 40... Rhg8 {[%clk 0:00:16.8]} 41. Rf4 {[%clk 0:00:04.8]} 41... Rxg3
{[%clk 0:00:15.9]} 42. Nd4 {[%clk 0:00:05.3]} 42... Rg2+ {[%clk 0:00:13.4]} 43.
Kxh3 {[%clk 0:00:05.4]} 43... Rxf2 {[%clk 0:00:13.2]} 44. Rxf2 {[%clk
0:00:05.8]} 44... Qg3# {[%clk 0:00:13]} 0-1

[Event "*** Titled Tuesday Blitz"]
[Site "Chess.com"]
[Date "2020.05.26"]
[Round "8"]
[White "Xtrmntr78"]
[Black "malakismayil"]
[Result "0-1"]
[WhiteElo "2426"]
[BlackElo "2308"]
[TimeControl "180+1"]
[EndTime "11:41:09 PDT"]
[Termination "malakismayil won on time"]

1. c4 {[%clk 0:03:00.9]} 1... e5 {[%clk 0:02:55.7]} 2. Nc3 {[%clk 0:03:00.5]}
2... Nf6 {[%clk 0:02:51.5]} 3. Nf3 {[%clk 0:02:59.6]} 3... Nc6 {[%clk 0:02:51]}
4. e3 {[%clk 0:02:59.2]} 4... Bb4 {[%clk 0:02:48.9]} 5. Nd5 {[%clk 0:02:59.1]}
5... Be7 {[%clk 0:02:45.8]} 6. Qc2 {[%clk 0:02:55.3]} 6... d6 {[%clk 0:02:45.5]}
7. a3 {[%clk 0:02:53.6]} 7... a5 {[%clk 0:02:44.3]} 8. Bd3 {[%clk 0:02:48.8]}
8... Be6 {[%clk 0:02:42.3]} 9. Nxf6+ {[%clk 0:02:16.1]} 9... Bxf6 {[%clk
0:02:43.2]} 10. Be4 {[%clk 0:02:12.2]} 10... h6 {[%clk 0:02:36.2]} 11. O-O
{[%clk 0:02:11.4]} 11... O-O {[%clk 0:02:34.3]} 12. Rd1 {[%clk 0:02:05.1]} 12...
d5 {[%clk 0:02:25.8]} 13. cxd5 {[%clk 0:02:00.3]} 13... Bxd5 {[%clk 0:02:26.7]}
14. d3 {[%clk 0:01:58.7]} 14... Be7 {[%clk 0:02:13.3]} 15. Bd2 {[%clk
0:01:56.1]} 15... f5 {[%clk 0:02:05]} 16. Bxd5+ {[%clk 0:01:55]} 16... Qxd5
{[%clk 0:02:05.9]} 17. Bc3 {[%clk 0:01:54.5]} 17... Kh8 {[%clk 0:01:48.9]} 18.
Rac1 {[%clk 0:01:35.7]} 18... Bd6 {[%clk 0:01:44.7]} 19. e4 {[%clk 0:01:17.3]}
19... Qf7 {[%clk 0:01:41.6]} 20. Nd2 {[%clk 0:01:12.2]} 20... f4 {[%clk
0:01:06.5]} 21. Nf3 {[%clk 0:01:01.1]} 21... Qg6 {[%clk 0:00:54]} 22. b4 {[%clk
0:00:51.6]} 22... axb4 {[%clk 0:00:50.4]} 23. axb4 {[%clk 0:00:51.2]} 23... Qh5
{[%clk 0:00:40.8]} 24. b5 {[%clk 0:00:47.9]} 24... Ne7 {[%clk 0:00:40.1]} 25.
Qb3 {[%clk 0:00:35.8]} 25... Ng6 {[%clk 0:00:37.4]} 26. d4 {[%clk 0:00:20.4]}
26... exd4 {[%clk 0:00:24.1]} 27. Bxd4 {[%clk 0:00:16.3]} 27... b6 {[%clk
0:00:23.1]} 28. Qd5 {[%clk 0:00:12.7]} 28... Qxd5 {[%clk 0:00:18.8]} 29. exd5
{[%clk 0:00:12.6]} 29... Ra5 {[%clk 0:00:19.1]} 30. Rb1 {[%clk 0:00:11.3]} 30...
Re8 {[%clk 0:00:17.4]} 31. Rdc1 {[%clk 0:00:11]} 31... Re2 {[%clk 0:00:15.6]}
32. Rc6 {[%clk 0:00:08.9]} 32... Ne7 {[%clk 0:00:08.5]} 33. Rxd6 {[%clk
0:00:03.8]} 33... cxd6 {[%clk 0:00:08.2]} 34. Bxb6 {[%clk 0:00:04]} 34... Ra8
{[%clk 0:00:09.1]} 35. Bd4 {[%clk 0:00:02.5]} 35... Nxd5 {[%clk 0:00:09.7]} 36.
b6 {[%clk 0:00:02.2]} 36... Rb8 {[%clk 0:00:10.6]} 0-1

[Event "*** Titled Tuesday Blitz"]
[Site "Chess.com"]
[Date "2020.05.26"]
[Round "8"]
[White "fabianvivasz"]
[Black "Tashik"]
[Result "1-0"]
[WhiteElo "2308"]
[BlackElo "2423"]
[TimeControl "180+1"]
[EndTime "11:41:09 PDT"]
[Termination "fabianvivasz won on time"]

1. e4 {[%clk 0:03:00.9]} 1... e5 {[%clk 0:02:59.4]} 2. Nf3 {[%clk 0:03:00.5]}
2... Nc6 {[%clk 0:02:59.4]} 3. d4 {[%clk 0:02:56.2]} 3... exd4 {[%clk 0:02:59]}
4. Bc4 {[%clk 0:02:56.7]} 4... Nf6 {[%clk 0:02:58.7]} 5. e5 {[%clk 0:02:55.9]}
5... d5 {[%clk 0:02:58.2]} 6. Bb5 {[%clk 0:02:56.5]} 6... Ne4 {[%clk 0:02:58.6]}
7. Nxd4 {[%clk 0:02:57]} 7... Bd7 {[%clk 0:02:58.9]} 8. Bxc6 {[%clk 0:02:56.6]}
8... bxc6 {[%clk 0:02:59.8]} 9. O-O {[%clk 0:02:55]} 9... Bc5 {[%clk 0:02:53.5]}
10. f3 {[%clk 0:02:55.3]} 10... Ng5 {[%clk 0:02:51.4]} 11. f4 {[%clk 0:02:55.5]}
11... Ne4 {[%clk 0:02:51]} 12. Be3 {[%clk 0:02:54.2]} 12... O-O {[%clk
0:02:49.7]} 13. Nc3 {[%clk 0:02:46.2]} 13... f5 {[%clk 0:02:32.1]} 14. Qe1
{[%clk 0:02:02.5]} 14... Qe7 {[%clk 0:02:27.4]} 15. Nb3 {[%clk 0:01:39.8]} 15...
Bb6 {[%clk 0:02:24.2]} 16. a4 {[%clk 0:01:32.4]} 16... a5 {[%clk 0:02:16.3]} 17.
Kh1 {[%clk 0:01:15.3]} 17... Be6 {[%clk 0:02:00.8]} 18. Rd1 {[%clk 0:01:08.4]}
18... Rfd8 {[%clk 0:01:53.6]} 19. Nxe4 {[%clk 0:01:04]} 19... dxe4 {[%clk
0:01:48.9]} 20. Qc3 {[%clk 0:01:00.3]} 20... Qb4 {[%clk 0:01:42.3]} 21. Qxc6
{[%clk 0:00:43.4]} 21... Bxb3 {[%clk 0:01:37.6]} 22. Bxb6 {[%clk 0:00:40.1]}
22... cxb6 {[%clk 0:01:04.4]} 23. cxb3 {[%clk 0:00:36.2]} 23... Qxb3 {[%clk
0:00:55.8]} 24. Rxd8+ {[%clk 0:00:20.5]} 24... Rxd8 {[%clk 0:00:56.7]} 25. e6
{[%clk 0:00:20.7]} 25... Qd3 {[%clk 0:00:47.5]} 26. Rg1 {[%clk 0:00:16.2]} 26...
Qd6 {[%clk 0:00:47.9]} 27. Qc4 {[%clk 0:00:12.5]} 27... Kf8 {[%clk 0:00:39.4]}
28. h3 {[%clk 0:00:11.5]} 28... Ke7 {[%clk 0:00:39.3]} 29. Rc1 {[%clk
0:00:10.2]} 29... Qxe6 {[%clk 0:00:38.4]} 30. Qc7+ {[%clk 0:00:07.1]} 30... Rd7
{[%clk 0:00:38.8]} 31. Qb8 {[%clk 0:00:06.8]} 31... Qd6 {[%clk 0:00:23.4]} 32.
Qg8 {[%clk 0:00:06]} 32... Qg6 {[%clk 0:00:10.5]} 33. Rc8 {[%clk 0:00:05.3]}
33... Qf7 {[%clk 0:00:04.7]} 34. Qxh7 {[%clk 0:00:05.4]} 34... Rd1+ {[%clk
0:00:03.2]} 35. Kh2 {[%clk 0:00:05.4]} 35... Kd7 {[%clk 0:00:04.1]} 36. Rc2
{[%clk 0:00:04]} 36... Rd6 {[%clk 0:00:01.3]} 37. Qh8 {[%clk 0:00:04]} 37... Rc6
{[%clk 0:00:01.5]} 38. Rd2+ {[%clk 0:00:04.1]} 1-0

[Event "*** Titled Tuesday Blitz"]
[Site "Chess.com"]
[Date "2020.05.26"]
[Round "8"]
[White "moistketchup"]
[Black "Stronger1799"]
[Result "0-1"]
[WhiteElo "2184"]
[BlackElo "2372"]
[TimeControl "180+1"]
[EndTime "11:41:09 PDT"]
[Termination "Stronger1799 won on time"]

1. d4 {[%clk 0:02:24]} 1... Nf6 {[%clk 0:02:55.4]} 2. c4 {[%clk 0:02:23]} 2...
g6 {[%clk 0:02:55.7]} 3. Nc3 {[%clk 0:02:22.5]} 3... d5 {[%clk 0:02:56.3]} 4.
cxd5 {[%clk 0:02:19.6]} 4... Nxd5 {[%clk 0:02:57.2]} 5. g3 {[%clk 0:02:20.5]}
5... Bg7 {[%clk 0:02:56.7]} 6. Bg2 {[%clk 0:02:20.8]} 6... Nb6 {[%clk
0:02:57.3]} 7. Nf3 {[%clk 0:02:21.4]} 7... O-O {[%clk 0:02:57]} 8. O-O {[%clk
0:02:21.9]} 8... Nc6 {[%clk 0:02:57.6]} 9. e3 {[%clk 0:02:22]} 9... Re8 {[%clk
0:02:58.2]} 10. Re1 {[%clk 0:02:21.5]} 10... e5 {[%clk 0:02:58.6]} 11. d5 {[%clk
0:02:18.1]} 11... Na5 {[%clk 0:02:58.7]} 12. e4 {[%clk 0:02:13.3]} 12... c6
{[%clk 0:02:58.3]} 13. dxc6 {[%clk 0:02:03.8]} 13... Nxc6 {[%clk 0:02:58.1]} 14.
Be3 {[%clk 0:02:03.3]} 14... Nc4 {[%clk 0:02:54.9]} 15. Qc2 {[%clk 0:01:46.6]}
15... Nxe3 {[%clk 0:02:52.8]} 16. Rxe3 {[%clk 0:01:47.5]} 16... Nd4 {[%clk
0:02:51.6]} 17. Nxd4 {[%clk 0:01:42.7]} 17... exd4 {[%clk 0:02:46.6]} 18. Rd3
{[%clk 0:01:36.8]} 18... Qc7 {[%clk 0:02:46.1]} 19. Qa4 {[%clk 0:01:35]} 19...
Bd7 {[%clk 0:02:43.8]} 20. Nd5 {[%clk 0:01:34]} 20... Qd6 {[%clk 0:01:32.3]} 21.
Qb4 {[%clk 0:01:21.6]} 21... Qxb4 {[%clk 0:01:26.7]} 22. Nxb4 {[%clk 0:01:22.5]}
22... Bb5 {[%clk 0:01:20]} 23. Rd2 {[%clk 0:01:21.8]} 23... d3 {[%clk 0:01:11]}
24. Nxd3 {[%clk 0:01:04.4]} 24... Rad8 {[%clk 0:01:08.8]} 25. Rad1 {[%clk
0:01:03.8]} 25... Bc6 {[%clk 0:00:41.7]} 26. f3 {[%clk 0:00:25.7]} 26... Rd4
{[%clk 0:00:32.3]} 27. Nf4 {[%clk 0:00:20.8]} 27... Red8 {[%clk 0:00:31.8]} 28.
Nd5 {[%clk 0:00:14.7]} 28... Rxd2 {[%clk 0:00:24.7]} 29. Rxd2 {[%clk 0:00:15.6]}
29... Kf8 {[%clk 0:00:20.9]} 30. f4 {[%clk 0:00:14.4]} 30... g5 {[%clk
0:00:08.3]} 31. Kf2 {[%clk 0:00:08.8]} 31... gxf4 {[%clk 0:00:08.6]} 32. gxf4
{[%clk 0:00:09.7]} 32... Rd6 {[%clk 0:00:07.5]} 33. Ke3 {[%clk 0:00:08.6]} 33...
Rh6 {[%clk 0:00:07.7]} 34. Bf3 {[%clk 0:00:08.2]} 34... Rh3 {[%clk 0:00:07.4]}
35. e5 {[%clk 0:00:07.1]} 35... Bh6 {[%clk 0:00:07]} 36. Ke4 {[%clk 0:00:04.9]}
36... Kg7 {[%clk 0:00:03.8]} 37. b4 {[%clk 0:00:04.8]} 37... a6 {[%clk
0:00:03.6]} 38. Rg2+ {[%clk 0:00:01.4]} 38... Kf8 {[%clk 0:00:03.8]} 39. Rd2
{[%clk 0:00:01.8]} 39... f5+ {[%clk 0:00:04.1]} 0-1

[Event "*** Titled Tuesday Blitz"]
[Site "Chess.com"]
[Date "2020.05.26"]
[Round "8"]
[White "AcsinteMatei"]
[Black "Perecke"]
[Result "1-0"]
[WhiteElo "2340"]
[BlackElo "2184"]
[TimeControl "180+1"]
[EndTime "11:41:11 PDT"]
[Termination "AcsinteMatei won on time"]

1. e4 {[%clk 0:03:00.9]} 1... c5 {[%clk 0:02:59.6]} 2. b3 {[%clk 0:02:59.8]}
2... e6 {[%clk 0:02:56.8]} 3. Bb2 {[%clk 0:02:57.7]} 3... Nc6 {[%clk 0:02:57]}
4. Nf3 {[%clk 0:02:57.1]} 4... d5 {[%clk 0:02:57]} 5. exd5 {[%clk 0:02:56.7]}
5... exd5 {[%clk 0:02:57.9]} 6. Bb5 {[%clk 0:02:56.6]} 6... Nf6 {[%clk
0:02:57.2]} 7. d4 {[%clk 0:02:56.2]} 7... a6 {[%clk 0:02:55.4]} 8. Qe2+ {[%clk
0:02:54.7]} 8... Be7 {[%clk 0:02:54.8]} 9. Bxc6+ {[%clk 0:02:49.7]} 9... bxc6
{[%clk 0:02:54.5]} 10. Ne5 {[%clk 0:02:46]} 10... Bb7 {[%clk 0:02:51.3]} 11.
dxc5 {[%clk 0:02:41.7]} 11... O-O {[%clk 0:02:51]} 12. Nd2 {[%clk 0:02:35.2]}
12... Bxc5 {[%clk 0:02:45.9]} 13. O-O {[%clk 0:02:35]} 13... a5 {[%clk
0:02:44.1]} 14. c4 {[%clk 0:02:28]} 14... Re8 {[%clk 0:02:38.8]} 15. Qf3 {[%clk
0:02:21.6]} 15... a4 {[%clk 0:02:32.1]} 16. Rad1 {[%clk 0:02:09]} 16... Qc7
{[%clk 0:01:45.3]} 17. Rfe1 {[%clk 0:01:55.9]} 17... axb3 {[%clk 0:01:39.5]} 18.
axb3 {[%clk 0:01:50.4]} 18... Ra2 {[%clk 0:01:31.8]} 19. Bc3 {[%clk 0:01:48.7]}
19... d4 {[%clk 0:01:26.7]} 20. Ng4 {[%clk 0:01:48.6]} 20... Rxe1+ {[%clk
0:01:12.9]} 21. Rxe1 {[%clk 0:01:48.3]} 21... Qd8 {[%clk 0:00:54.7]} 22. Nxf6+
{[%clk 0:01:37]} 22... gxf6 {[%clk 0:00:49.1]} 23. Ne4 {[%clk 0:01:30.6]} 23...
dxc3 {[%clk 0:00:43]} 24. Nxc5 {[%clk 0:01:26.6]} 24... Qe7 {[%clk 0:00:21.6]}
25. Qg3+ {[%clk 0:01:03.9]} 25... Kh8 {[%clk 0:00:17.6]} 26. Qxc3 {[%clk
0:01:02.9]} 26... Re2 {[%clk 0:00:13.2]} 27. Rxe2 {[%clk 0:00:53.5]} 27... Qxe2
{[%clk 0:00:14.1]} 28. Qxf6+ {[%clk 0:00:53.5]} 28... Kg8 {[%clk 0:00:14]} 29.
h3 {[%clk 0:00:50.6]} 29... Bc8 {[%clk 0:00:13]} 30. Qd8+ {[%clk 0:00:47.7]}
30... Kg7 {[%clk 0:00:13.1]} 31. Qg5+ {[%clk 0:00:43.7]} 31... Kf8 {[%clk
0:00:10.9]} 32. Qh6+ {[%clk 0:00:42.3]} 32... Kg8 {[%clk 0:00:11]} 33. Qxc6
{[%clk 0:00:37.5]} 33... Bf5 {[%clk 0:00:04.1]} 34. Qf3 {[%clk 0:00:35]} 34...
Qe1+ {[%clk 0:00:03.5]} 35. Kh2 {[%clk 0:00:35.1]} 35... Qe5+ {[%clk 0:00:04.1]}
36. Qg3+ {[%clk 0:00:35.4]} 36... Qxg3+ {[%clk 0:00:03.2]} 37. Kxg3 {[%clk
0:00:36.3]} 37... Kf8 {[%clk 0:00:03.8]} 38. Kf4 {[%clk 0:00:36.5]} 38... Bb1
{[%clk 0:00:03.1]} 39. Ke5 {[%clk 0:00:34.5]} 39... Ke7 {[%clk 0:00:02.8]} 40.
b4 {[%clk 0:00:29.9]} 40... Kd8 {[%clk 0:00:01.1]} 41. Ne4 {[%clk 0:00:26.3]}
41... Ba2 {[%clk 0:00:01.2]} 42. c5 {[%clk 0:00:26.3]} 42... Kd7 {[%clk
0:00:01.5]} 43. b5 {[%clk 0:00:26.4]} 43... Kc7 {[%clk 0:00:01.9]} 44. Nd6
{[%clk 0:00:25.8]} 44... Bb3 {[%clk 0:00:01.8]} 45. Kf6 {[%clk 0:00:25.6]} 45...
Bc2 {[%clk 0:00:01.5]} 46. Nxf7 {[%clk 0:00:25.6]} 46... Bd3 {[%clk 0:00:02.4]}
47. Nd6 {[%clk 0:00:25.4]} 1-0

[Event "*** Titled Tuesday Blitz"]
[Site "Chess.com"]
[Date "2020.05.26"]
[Round "8"]
[White "White_Ghost"]
[Black "MiroVlasenko"]
[Result "0-1"]
[WhiteElo "2478"]
[BlackElo "2666"]
[TimeControl "180+1"]
[EndTime "11:41:13 PDT"]
[Termination "MiroVlasenko won by checkmate"]

1. d4 {[%clk 0:02:57.6]} 1... f5 {[%clk 0:02:58.4]} 2. Nf3 {[%clk 0:02:53.7]}
2... Nf6 {[%clk 0:02:58.5]} 3. g3 {[%clk 0:02:53.7]} 3... g6 {[%clk 0:02:58.7]}
4. Bg2 {[%clk 0:02:54.3]} 4... Bg7 {[%clk 0:02:59.4]} 5. O-O {[%clk 0:02:55]}
5... O-O {[%clk 0:02:59.9]} 6. b3 {[%clk 0:02:55.5]} 6... d6 {[%clk 0:02:58.4]}
7. Bb2 {[%clk 0:02:56.4]} 7... c6 {[%clk 0:02:47.5]} 8. c4 {[%clk 0:02:55.3]}
8... Qc7 {[%clk 0:02:45.2]} 9. Nc3 {[%clk 0:02:54.2]} 9... a5 {[%clk 0:02:42.7]}
10. Re1 {[%clk 0:02:53.9]} 10... Ne4 {[%clk 0:02:39.7]} 11. Nxe4 {[%clk
0:02:51.7]} 11... fxe4 {[%clk 0:02:38.9]} 12. Nd2 {[%clk 0:02:52.2]} 12... d5
{[%clk 0:02:37.8]} 13. cxd5 {[%clk 0:02:50.9]} 13... cxd5 {[%clk 0:02:37.1]} 14.
Rc1 {[%clk 0:02:49.8]} 14... Qb6 {[%clk 0:02:30.2]} 15. e3 {[%clk 0:02:49.9]}
15... Nd7 {[%clk 0:02:23.2]} 16. Qc2 {[%clk 0:02:44.3]} 16... Nf6 {[%clk
0:02:13.9]} 17. Qc7 {[%clk 0:02:42.1]} 17... Qe6 {[%clk 0:02:11.2]} 18. h3
{[%clk 0:02:35.4]} 18... Ne8 {[%clk 0:01:55.8]} 19. Qc5 {[%clk 0:02:27.1]} 19...
Bd7 {[%clk 0:01:48.4]} 20. Ba3 {[%clk 0:02:22.3]} 20... Rf7 {[%clk 0:01:45.7]}
21. Nb1 {[%clk 0:02:18.4]} 21... b6 {[%clk 0:01:42.7]} 22. Qc2 {[%clk
0:02:16.3]} 22... Nd6 {[%clk 0:01:39.1]} 23. Nc3 {[%clk 0:02:15.2]} 23... Raf8
{[%clk 0:01:38.3]} 24. Re2 {[%clk 0:02:07.1]} 24... Bh6 {[%clk 0:01:32.6]} 25.
Nd1 {[%clk 0:02:03.3]} 25... Bb5 {[%clk 0:01:30]} 26. Rd2 {[%clk 0:02:03.6]}
26... Nf5 {[%clk 0:01:21.4]} 27. Qc7 {[%clk 0:01:56]} 27... Qf6 {[%clk 0:01:06]}
28. Qe5 {[%clk 0:01:49.1]} 28... Qxe5 {[%clk 0:00:55.6]} 29. dxe5 {[%clk
0:01:50]} 29... Bd3 {[%clk 0:00:47.4]} 30. g4 {[%clk 0:01:41.5]} 30... Nh4
{[%clk 0:00:41.2]} 31. e6 {[%clk 0:01:41.2]} 31... Rg7 {[%clk 0:00:29]} 32. Bb2
{[%clk 0:01:40.6]} 32... Bg5 {[%clk 0:00:19.1]} 33. Bxg7 {[%clk 0:01:38.7]}
33... Kxg7 {[%clk 0:00:19.6]} 34. Nb2 {[%clk 0:01:39]} 34... d4 {[%clk
0:00:17.3]} 35. Nxd3 {[%clk 0:01:23.3]} 35... dxe3 {[%clk 0:00:17.6]} 36. Re2
{[%clk 0:01:23.6]} 36... exd3 {[%clk 0:00:17.3]} 37. Rxe3 {[%clk 0:01:23.4]}
37... Bxe3 {[%clk 0:00:16.9]} 38. fxe3 {[%clk 0:01:24.3]} 38... Nxg2 {[%clk
0:00:16.5]} 39. Kxg2 {[%clk 0:01:24.2]} 39... d2 {[%clk 0:00:16.3]} 40. Rd1
{[%clk 0:01:24.2]} 40... Rd8 {[%clk 0:00:16.9]} 41. Kf2 {[%clk 0:01:24.6]} 41...
Kf6 {[%clk 0:00:17.3]} 42. Ke2 {[%clk 0:01:24.7]} 42... Kxe6 {[%clk 0:00:17.8]}
43. Rxd2 {[%clk 0:01:25.2]} 43... Rxd2+ {[%clk 0:00:17.9]} 44. Kxd2 {[%clk
0:01:26.1]} 44... Kd5 {[%clk 0:00:18]} 45. Kd3 {[%clk 0:01:26.6]} 45... b5
{[%clk 0:00:18.4]} 46. a3 {[%clk 0:01:25.2]} 46... Ke5 {[%clk 0:00:18.3]} 47. e4
{[%clk 0:01:19.9]} 47... g5 {[%clk 0:00:17.7]} 48. Ke3 {[%clk 0:01:19.8]} 48...
e6 {[%clk 0:00:17.6]} 49. Kd3 {[%clk 0:01:18.5]} 49... Kf4 {[%clk 0:00:18]} 50.
Kd4 {[%clk 0:01:18.8]} 50... e5+ {[%clk 0:00:18.4]} 51. Kd5 {[%clk 0:00:57.7]}
51... b4 {[%clk 0:00:18.3]} 52. axb4 {[%clk 0:00:56.1]} 52... axb4 {[%clk
0:00:18]} 53. Kc4 {[%clk 0:00:56]} 53... Kxe4 {[%clk 0:00:18.4]} 54. Kxb4 {[%clk
0:00:56.9]} 54... Kd4 {[%clk 0:00:18.6]} 55. Ka3 {[%clk 0:00:53.6]} 55... Kc3
{[%clk 0:00:18.1]} 56. b4 {[%clk 0:00:52.1]} 56... e4 {[%clk 0:00:18.5]} 57. b5
{[%clk 0:00:50.6]} 57... e3 {[%clk 0:00:19.4]} 58. b6 {[%clk 0:00:51]} 58... e2
{[%clk 0:00:20.3]} 59. b7 {[%clk 0:00:48.4]} 59... e1=Q {[%clk 0:00:21.2]} 60.
Ka4 {[%clk 0:00:45.1]} 60... Qe4+ {[%clk 0:00:20.8]} 61. Ka5 {[%clk 0:00:44.4]}
61... Qxb7 {[%clk 0:00:20.7]} 62. h4 {[%clk 0:00:44.7]} 62... gxh4 {[%clk
0:00:20.7]} 63. g5 {[%clk 0:00:44.8]} 63... h3 {[%clk 0:00:21.2]} 64. g6 {[%clk
0:00:45]} 64... hxg6 {[%clk 0:00:21.5]} 65. Ka4 {[%clk 0:00:45.4]} 65... Qa6#
{[%clk 0:00:22.4]} 0-1